bitfinex/quotes_BTCUSD_20220115
["timestamp","ask_amount","ask_price","bid_price","bid_amount"]
[1642244403050,0.48069062,43132.0,43123.0,1.28216876]
[1642244403296,0.32105618,43127.0,43123.0,1.28216876]
[1642244403497,0.32105618,43127.0,43123.0,0.4154]
[1642244403698,0.32105618,43127.0,43123.0,0.4304]
[1642244405097,0.32105618,43127.0,43123.0,0.4154]
[1642244405699,0.32105618,43127.0,43123.0,0.4304]
[1642244405899,8.595e-05,43131.0,43123.0,0.4304]
[1642244406299,6.876e-05,43130.0,43123.0,0.4304]
[1642244406800,0.25193801,43131.0,43123.0,0.4304]
[1642244407048,0.25193801,43131.0,43123.0,0.4154]
[1642244407248,6.876e-05,43130.0,43123.0,1.01054523]
[1642244407649,6.876e-05,43130.0,43123.0,1.02454523]
[1642244408950,6.876e-05,43130.0,43123.0,0.4154]
[1642244409152,0.057988,43124.0,43123.0,0.4154]
[1642244409551,0.10659268,43124.0,43123.0,0.4154]
[1642244409850,0.10659268,43124.0,43123.0,0.4244]
[1642244410252,0.44901829,43124.0,43123.0,0.4244]
[1642244410905,0.44901829,43124.0,43123.0,0.4154]
[1642244411708,0.55101829,43124.0,43123.0,0.4174]
[1642244411909,0.94580131,43124.0,43123.0,0.4174]
[1642244412206,0.94580131,43124.0,43123.0,0.002]
[1642244412609,1.54580131,43124.0,43123.0,0.002]
[1642244412809,1.54580131,43124.0,43118.0,0.67957197]
[1642244412810,0.058001,43121.0,43118.0,0.67957197]
[1642244413009,0.00128127,43119.0,43118.0,0.63387197]
[1642244413208,0.00128127,43119.0,43117.0,0.63827197]
[1642244413209,0.26624734,43119.0,43117.0,0.63827197]
[1642244413410,0.26624734,43119.0,43117.0,0.0044]
[1642244413609,0.976113,43118.0,43117.0,0.0044]
[1642244414009,0.05560001,43117.0,43116.0,0.4443]
[1642244414212,0.43171301,43117.0,43116.0,0.4443]
[1642244414411,0.43171301,43117.0,43116.0,0.4444719]
[1642244414650,0.53171301,43117.0,43116.0,0.4444719]
[1642244414952,0.72285193,43117.0,43116.0,0.4444719]
[1642244415854,0.74685193,43117.0,43116.0,0.4444719]
[1642244416051,0.60431769,43117.0,43116.0,0.4444719]
[1642244416754,0.22820469,43117.0,43116.0,0.4444719]
[1642244416952,0.20420469,43117.0,43116.0,0.4444719]
[1642244417153,0.10420469,43117.0,43116.0,0.4444719]
[1642244417956,0.10420469,43117.0,43116.0,0.3997719]
[1642244418153,0.10420469,43117.0,43116.0,0.0023719]
[1642244420319,0.13072984,43117.0,43116.0,0.0023719]
[1642244423157,0.13072984,43117.0,43107.0,0.13499929]
[1642244423557,0.08212516,43117.0,43108.0,0.00013752]
[1642244423757,0.04860468,43116.0,43108.0,0.00013752]
[1642244423958,0.04860468,43116.0,43109.0,0.057992]
[1642244424259,0.04860468,43116.0,43110.0,0.12341693]
[1642244424461,0.26962734,43113.0,43111.0,0.2756069]
[1642244424658,0.14860468,43116.0,43111.0,0.27569285]
[1642244424857,0.04860468,43116.0,43112.0,6.876e-05]
[1642244425059,0.04860468,43116.0,43112.0,0.12588106]
[1642244426109,0.04860468,43116.0,43112.0,6.876e-05]
[1642244426506,0.04860468,43116.0,43111.0,0.28367566]
[1642244426906,0.04860468,43116.0,43111.0,0.27067566]
[1642244427110,0.04860468,43116.0,43111.0,0.26567566]
[1642244428207,0.04860468,43116.0,43111.0,0.22097566]
[1642244428707,0.02430234,43116.0,43111.0,0.22097566]
[1642244428908,0.10602651,43117.0,43111.0,0.22097566]
[1642244429109,0.04860468,43114.0,43112.0,0.12407857]
[1642244429309,0.04860468,43114.0,43112.0,0.12628015]
[1642244429763,0.04860468,43114.0,43111.0,0.22097566]
[1642244430260,0.04860468,43114.0,43112.0,0.59385013]
[1642244431660,0.04860468,43114.0,43113.0,0.59385013]
[1642244432061,0.04860468,43114.0,43112.0,0.60185013]
[1642244433163,0.04860468,43114.0,43112.0,0.54915013]
[1642244433805,0.04860468,43114.0,43112.0,0.55715013]
[1642244434006,0.02430234,43114.0,43112.0,0.55715013]
[1642244434206,6.876e-05,43116.0,43112.0,0.55715013]
[1642244434408,0.04860468,43113.0,43112.0,1.05715013]
[1642244434808,0.04860468,43113.0,43112.0,0.55715013]
[1642244435007,0.04860468,43113.0,43112.0,0.54915013]
[1642244435408,0.04860468,43113.0,43112.0,0.94915013]
[1642244435807,0.04860468,43113.0,43112.0,0.95915013]
[1642244436011,0.04860468,43113.0,43112.0,1.27284227]
[1642244437060,0.04860468,43113.0,43112.0,0.95915013]
[1642244437464,0.04860468,43113.0,43112.0,1.60915013]
[1642244437662,0.04860468,43113.0,43112.0,1.59915013]
[1642244437862,0.04860468,43113.0,43112.0,1.60815013]
[1642244438062,0.04860468,43113.0,43112.0,0.95815013]
[1642244438265,0.04860468,43113.0,43112.0,0.91325013]
[1642244439064,0.04860468,43113.0,43112.0,0.90425013]
[1642244439466,0.04860468,43113.0,43112.0,0.85]
[1642244439866,0.04860468,43113.0,43112.0,0.863]
[1642244440467,0.04860468,43113.0,43112.0,0.463]
[1642244441112,0.04860468,43113.0,43112.0,0.45]
[1642244441310,0.04860468,43113.0,43112.0,1.0]
[1642244441510,0.04860468,43113.0,43112.0,0.45]
[1642244441809,0.04860468,43113.0,43112.0,0.461]
[1642244443110,0.04860468,43113.0,43112.0,0.4053]
[1642244443809,0.04860468,43113.0,43112.0,0.4183]
[1642244444309,0.04860468,43113.0,43112.0,0.9683]
[1642244444557,0.04860468,43113.0,43112.0,0.4183]
[1642244444857,0.04860468,43113.0,43112.0,0.013]
[1642244445057,0.04860468,43113.0,43109.0,0.31507013]
[1642244445458,0.41118027,43116.0,43109.0,0.31507013]
[1642244445659,0.02430234,43111.0,43109.0,0.31498776]
[1642244446561,0.02430234,43111.0,43110.0,1.14519216]
[1642244446862,0.02430234,43111.0,43110.0,0.59519216]
[1642244447261,0.02430234,43111.0,43110.0,1.29519216]
[1642244447865,0.02430234,43111.0,43110.0,1.32119216]
[1642244448303,0.02430234,43111.0,43110.0,1.27659216]
[1642244448507,0.02430234,43111.0,43110.0,1.27159216]
[1642244449104,0.02430234,43111.0,43110.0,1.24559216]
[1642244449905,0.02430234,43111.0,43110.0,1.27159216]
[1642244451108,0.04860468,43111.0,43110.0,1.24559216]
[1642244451910,0.04860468,43111.0,43110.0,1.27059216]
[1642244453082,0.04860468,43111.0,43110.0,1.24559216]
[1642244453282,0.04860468,43111.0,43110.0,1.20089216]
[1642244453881,0.04860468,43111.0,43110.0,1.21789216]
[1642244454481,0.04860468,43111.0,43110.0,1.54113071]
[1642244455083,0.04860468,43111.0,43110.0,1.02323855]
[1642244455280,0.04860468,43111.0,43110.0,1.72323855]
[1642244455915,0.04860468,43111.0,43110.0,1.73723855]
[1642244457017,0.04860468,43111.0,43110.0,1.72323855]
[1642244457819,0.04860468,43111.0,43110.0,1.73823855]
[1642244458224,0.04860468,43111.0,43110.0,1.69333855]
[1642244459021,0.04860468,43111.0,43110.0,1.67833855]
[1642244459860,0.04860468,43111.0,43110.0,1.69633855]
[1642244461060,0.04860468,43111.0,43110.0,2.62833855]
[1642244461464,0.04860468,43111.0,43110.0,2.3051]
[1642244461862,0.04860468,43111.0,43110.0,2.3291]
[1642244462664,0.04860468,43111.0,43110.0,1.3791]
[1642244462864,0.04860468,43111.0,43110.0,0.6791]
[1642244463066,0.04860468,43111.0,43110.0,1.13677053]
[1642244463320,0.04860468,43111.0,43110.0,1.09217053]
[1642244463922,0.04860468,43111.0,43110.0,1.10917053]
[1642244464122,0.04860468,43111.0,43110.0,1.75917053]
[1642244464322,0.04860468,43111.0,43110.0,1.10917053]
[1642244464723,0.04860468,43111.0,43110.0,1.7043656]
[1642244465224,0.04860468,43111.0,43110.0,1.09217053]
[1642244465824,0.04860468,43111.0,43110.0,1.10717053]
[1642244466027,0.04860468,43111.0,43110.0,2.00717053]
[1642244467162,0.04860468,43111.0,43110.0,1.99217053]
[1642244467858,0.04860468,43111.0,43110.0,1.11017053]
[1642244468058,0.04860468,43111.0,43110.0,1.71017053]
[1642244468261,0.04860468,43111.0,43110.0,1.66527053]
[1642244468663,0.04860468,43111.0,43110.0,1.06527053]
[1642244469159,0.04860468,43111.0,43110.0,1.04727053]
[1642244469962,0.04860468,43111.0,43110.0,1.96827053]
[1642244470462,0.04860468,43111.0,43110.0,2.7532695]
[1642244471010,0.04860468,43111.0,43110.0,1.06827053]
[1642244471212,0.04860468,43111.0,43110.0,1.04727053]
[1642244472013,0.04860468,43111.0,43110.0,1.06427053]
[1642244472614,0.04798667,43111.0,43110.0,0.017]
[1642244472812,0.02430234,43111.0,43110.0,0.017]
[1642244473012,0.04798667,43111.0,43110.0,0.667]
[1642244473211,0.04798667,43111.0,43110.0,0.6053]
[1642244474012,0.04798667,43111.0,43110.0,1.3193]
[1642244475264,0.04798667,43111.0,43110.0,1.3053]
[1642244475966,0.04798667,43111.0,43110.0,1.3223]
[1642244476665,0.04798667,43111.0,43110.0,0.6223]
[1642244477066,0.04798667,43111.0,43110.0,0.6053]
[1642244477466,0.04798667,43111.0,43110.0,1.20062491]
[1642244477965,0.04798667,43111.0,43110.0,1.21762491]
[1642244478409,0.04798667,43111.0,43110.0,1.17292491]
[1642244479412,0.04798667,43111.0,43110.0,1.15592491]
[1642244480112,0.04798667,43111.0,43110.0,1.17292491]
[1642244481212,0.04798667,43111.0,43110.0,1.15592491]
[1642244482057,0.04798667,43111.0,43110.0,1.17092491]
[1642244482858,0.04798667,43111.0,43110.0,1.77092491]
[1642244483259,0.04798667,43111.0,43110.0,1.1156]
[1642244483860,0.04798667,43111.0,43110.0,1.1316]
[1642244484861,0.04798667,43111.0,43110.0,1.72692882]
[1642244485260,0.04798667,43111.0,43110.0,1.71092882]
[1642244485660,0.04798667,43111.0,43110.0,1.1156]
[1642244485913,0.04798667,43111.0,43110.0,1.1296]
[1642244486316,0.04798667,43111.0,43110.0,1.72492882]
[1642244487120,2.68128583,43111.0,43104.0,0.4154]
[1642244487319,0.00128433,43102.0,43101.0,0.94205671]
[1642244487517,1.79717433,43102.0,43101.0,0.79310357]
[1642244487716,2.17328733,43102.0,43101.0,0.79310357]
[1642244487916,2.35937394,43102.0,43101.0,0.81310357]
[1642244488317,2.81265617,43102.0,43101.0,0.02]
[1642244488516,0.0012176,43088.0,43087.0,0.77341335]
[1642244488716,0.02920719,43088.0,43087.0,0.77341335]
[1642244489016,0.02920719,43088.0,43087.0,0.7738431]
[1642244489215,0.02798959,43088.0,43087.0,0.7738431]
[1642244489416,0.02924458,43088.0,43087.0,0.7738431]
[1642244489663,0.00123401,43095.0,43087.0,0.00042975]
[1642244489860,0.00123401,43095.0,43087.0,0.99304049]
[1642244490060,0.00123401,43095.0,43087.0,1.12004049]
[1642244490260,0.004,43100.0,43089.0,0.0580153]
[1642244490462,0.004,43100.0,43092.0,0.058013]
[1642244490661,0.004,43100.0,43093.0,0.14057488]
[1642244490863,0.004,43100.0,43093.0,0.14090149]
[1642244491060,0.004,43100.0,43094.0,0.00030942]
[1642244491262,0.38755455,43106.0,43094.0,0.00030942]
[1642244491462,0.38755455,43106.0,43098.0,0.24264279]
[1642244491862,0.38755455,43106.0,43099.0,0.00022347]
[1642244492664,0.46387022,43106.0,43099.0,0.00022347]
[1642244492863,0.02368433,43102.0,43099.0,0.00022347]
[1642244493064,0.04798667,43102.0,43099.0,0.00022347]
[1642244493506,0.04798667,43102.0,43098.0,0.19816626]
[1642244494308,0.04798667,43102.0,43098.0,0.25617326]
[1642244494706,0.04798667,43102.0,43098.0,0.55452659]
[1642244495707,0.04798667,43102.0,43098.0,1.14998616]
[1642244495907,0.04798667,43102.0,43099.0,0.12788723]
[1642244496108,0.04798667,43102.0,43098.0,0.80562583]
[1642244496508,0.04798667,43102.0,43098.0,0.86363283]
[1642244496708,0.04798667,43102.0,43099.0,0.59545957]
[1642244497959,0.02430234,43102.0,43099.0,0.60545957]
[1642244498260,0.02368433,43100.0,43099.0,0.60545957]
[1642244498461,0.04798667,43100.0,43099.0,0.56075957]
[1642244498861,0.04798667,43100.0,43099.0,0.01]
[1642244499259,0.04798667,43100.0,43098.0,0.74892583]
[1642244499661,0.04798667,43100.0,43098.0,0.19816626]
[1642244499960,0.04798667,43100.0,43099.0,1.19263499]
[1642244501014,0.04798667,43100.0,43099.0,0.9]
[1642244501415,0.04798667,43100.0,43098.0,1.1228637]
[1642244501815,0.04798667,43100.0,43099.0,1.68707307]
[1642244502414,0.04798667,43100.0,43098.0,0.44316626]
[1642244503216,0.04798667,43100.0,43098.0,0.42816626]
[1642244503417,0.00010314,43105.0,43098.0,0.42816626]
[1642244503418,0.12417624,43105.0,43098.0,0.42816626]
[1642244503618,0.12417624,43105.0,43098.0,0.38346626]
[1642244503619,0.02368433,43099.0,43098.0,0.38346626]
[1642244504018,0.02368433,43099.0,43098.0,0.39546626]
[1642244504673,0.02368433,43099.0,43098.0,1.14546626]
[1642244505273,0.02368433,43099.0,43098.0,0.38346626]
[1642244505675,0.02368433,43099.0,43098.0,1.03346626]
[1642244506678,0.02368433,43099.0,43098.0,0.38346626]
[1642244507678,0.02368433,43099.0,43098.0,0.78346626]
[1642244507879,0.02368433,43099.0,43098.0,0.38346626]
[1642244508609,0.02368433,43099.0,43098.0,0.33876626]
[1642244508813,0.02368433,43099.0,43098.0,0.23]
[1642244509009,0.04798667,43099.0,43098.0,0.23]
[1642244512568,0.04798667,43099.0,43098.0,0.73]
[1642244512770,0.04798667,43099.0,43098.0,0.23]
[1642244513471,0.04798667,43099.0,43098.0,0.1854]
[1642244518618,0.04798667,43099.0,43098.0,0.1406]
[1642244523508,0.04798667,43099.0,43098.0,0.0959]
[1642244524210,0.19867847,43099.0,43098.0,0.0959]
[1642244524411,0.69867847,43099.0,43098.0,0.0959]
[1642244524611,0.67479147,43099.0,43098.0,0.0959]
[1642244525211,0.73281647,43099.0,43098.0,0.0959]
[1642244525411,0.73402766,43099.0,43098.0,0.0959]
[1642244526012,0.78002766,43099.0,43098.0,0.0959]
[1642244526615,0.62933586,43099.0,43098.0,0.0959]
[1642244527260,0.58333586,43099.0,43098.0,0.0959]
[1642244527959,0.65331086,43099.0,43098.0,0.0959]
[1642244528156,0.27719786,43099.0,43098.0,0.0959]
[1642244528556,0.17598667,43099.0,43098.0,0.0512]
[1642244529156,0.04798667,43099.0,43098.0,0.0512]
[1642244532733,0.04798667,43099.0,43092.0,0.26640681]
[1642244532932,0.02430234,43099.0,43092.0,0.26640681]
[1642244533133,0.12313454,43102.0,43093.0,0.00010314]
[1642244533335,0.02368433,43096.0,43093.0,0.00010314]
[1642244533534,0.02368433,43096.0,43092.0,0.22190995]
[1642244538309,0.02430234,43097.0,43092.0,0.22190995]
[1642244538614,0.02368433,43094.0,43092.0,0.17710995]
[1642244538811,0.04798667,43094.0,43092.0,0.17710995]
[1642244539215,0.04798667,43094.0,43092.0,0.16710995]
[1642244543367,0.04798667,43094.0,43092.0,0.16210995]
[1642244543565,0.02430234,43094.0,43092.0,0.11750995]
[1642244543765,0.00602893,43100.0,43092.0,0.11750995]
[1642244543965,0.02368433,43093.0,43092.0,0.17552195]
[1642244544165,0.02368433,43093.0,43092.0,2.05552195]
[1642244544369,0.01968433,43093.0,43092.0,2.05552195]
[1642244544967,0.01968433,43093.0,43092.0,3.28452195]
[1642244545168,0.01968433,43093.0,43092.0,2.05552195]
[1642244545368,0.01968433,43093.0,43092.0,0.15552195]
[1642244545568,0.01968433,43093.0,43092.0,0.28086748]
[1642244546009,0.01968433,43093.0,43092.0,1.96807792]
[1642244547612,0.01968433,43093.0,43092.0,0.97556492]
[1642244547810,0.01968433,43093.0,43092.0,0.28086748]
[1642244548110,0.01968433,43093.0,43092.0,0.30020408]
[1642244548310,0.01968433,43093.0,43092.0,0.17452195]
[1642244548609,0.01968433,43093.0,43092.0,0.09180995]
[1642244548810,0.01968433,43093.0,43092.0,0.21624271]
[1642244549110,0.01968433,43093.0,43092.0,0.81178173]
[1642244549310,0.04398667,43093.0,43092.0,0.79278173]
[1642244549761,0.04398667,43093.0,43092.0,0.19724271]
[1642244549962,0.04398667,43093.0,43092.0,0.09080995]
[1642244550162,0.04398667,43093.0,43092.0,1.09080995]
[1642244551165,0.04398667,43093.0,43092.0,1.07280995]
[1642244551965,0.04398667,43093.0,43092.0,1.08980995]
[1642244553169,0.04398667,43093.0,43092.0,1.07280995]
[1642244553420,0.04398667,43093.0,43092.0,0.07280995]
[1642244553621,0.04398667,43093.0,43092.0,0.02810995]
[1642244554021,0.04398667,43093.0,43092.0,0.47810995]
[1642244554725,0.04398667,43093.0,43092.0,0.02810995]
[1642244556121,0.04398667,43093.0,43092.0,0.57810995]
[1642244556323,0.04398667,43093.0,43092.0,0.02810995]
[1642244558666,0.04398667,43093.0,43090.0,0.31048039]
[1642244559061,0.02430234,43093.0,43090.0,0.31048039]
[1642244559262,0.01968433,43091.0,43090.0,0.31048039]
[1642244559461,0.01904963,43091.0,43090.0,0.31048039]
[1642244559661,0.01904963,43091.0,43090.0,0.36849539]
[1642244561212,0.01904963,43091.0,43090.0,0.31048039]
[1642244563215,0.01904963,43091.0,43086.0,0.8575]
[1642244563423,0.15537759,43091.0,43086.0,0.8575]
[1642244563615,0.15537759,43091.0,43088.0,0.55075343]
[1642244563915,0.15537759,43091.0,43089.0,6.876e-05]
[1642244564115,0.1222029,43090.0,43089.0,6.876e-05]
[1642244564574,0.14125253,43090.0,43089.0,6.876e-05]
[1642244564773,0.16555487,43090.0,43089.0,6.876e-05]
[1642244564975,0.04335197,43090.0,43089.0,6.876e-05]
[1642244566174,0.17259995,43090.0,43089.0,6.876e-05]
[1642244566575,0.04335197,43090.0,43089.0,6.876e-05]
[1642244568807,0.04335197,43090.0,43086.0,0.483522]
[1642244569008,0.04335197,43090.0,43086.0,0.4255]
[1642244569207,0.04335197,43090.0,43086.0,0.4165]
[1642244569609,0.02430234,43090.0,43086.0,0.4165]
[1642244569811,0.01904963,43088.0,43086.0,0.4165]
[1642244570013,0.04335197,43088.0,43086.0,0.4295]
[1642244571219,2.23671994,43087.0,43086.0,0.00050001]
[1642244571412,2.477347,43087.0,43086.0,0.00050001]
[1642244571612,2.577347,43087.0,43086.0,0.00050001]
[1642244571814,1.177347,43087.0,43086.0,0.00050001]
[1642244572062,1.200347,43087.0,43086.0,0.00050001]
[1642244572263,0.500347,43087.0,43086.0,0.00050001]
[1642244573067,0.400347,43087.0,43086.0,0.00050001]
[1642244573265,0.001234,43087.0,43086.0,0.00050001]
[1642244573666,0.001234,43087.0,43083.0,0.33907146]
[1642244573868,0.0785307,43088.0,43083.0,0.29944136]
[1642244574064,0.0785307,43088.0,43084.0,8.595e-05]
[1642244574466,0.04335197,43088.0,43084.0,8.595e-05]
[1642244574865,0.02430234,43088.0,43084.0,8.595e-05]
[1642244575166,0.01904963,43086.0,43084.0,8.595e-05]
[1642244575370,0.04335197,43086.0,43084.0,8.595e-05]
[1642244575812,0.37904788,43085.0,43084.0,8.595e-05]
[1642244576014,0.88939969,43085.0,43084.0,8.595e-05]
[1642244576213,0.98939969,43085.0,43083.0,0.00010314]
[1642244576413,0.376113,43084.0,43083.0,0.00010314]
[1642244576613,0.375333,43084.0,43083.0,0.00010314]
[1642244577612,0.375333,43084.0,43082.0,0.00012033]
[1642244578214,0.4962656,43084.0,43082.0,0.00012033]
[1642244578413,0.12033726,43083.0,43082.0,0.00012033]
[1642244578813,0.12033726,43083.0,43077.0,0.55664264]
[1642244578814,0.17837926,43083.0,43077.0,0.55664264]
[1642244579216,0.12033726,43083.0,43078.0,6.876e-05]
[1642244579665,0.47904788,43085.0,43078.0,6.876e-05]
[1642244579859,0.47904788,43085.0,43077.0,8.595e-05]
[1642244580060,0.51004788,43085.0,43077.0,8.595e-05]
[1642244580262,0.63038486,43085.0,43077.0,8.595e-05]
[1642244580461,0.01904963,43081.0,43077.0,8.595e-05]
[1642244580664,0.04335197,43081.0,43077.0,8.595e-05]
[1642244581364,0.25478288,43079.0,43077.0,8.595e-05]
[1642244581761,0.04335197,43081.0,43076.0,0.00010314]
[1642244582562,0.04335197,43081.0,43078.0,0.2714403]
[1642244582765,0.04335197,43081.0,43079.0,0.24167095]
[1642244583318,0.04335197,43081.0,43080.0,1.12444327]
[1642244583716,0.04335197,43081.0,43080.0,1.07964327]
[1642244584017,0.04335197,43081.0,43080.0,2.7044678]
[1642244584215,0.04335197,43081.0,43080.0,1.7044678]
[1642244585319,0.04335197,43081.0,43079.0,0.69469744]
[1642244585617,0.058039,43085.0,43079.0,0.69469744]
[1642244585820,0.12199636,43084.0,43079.0,0.69469744]
[1642244586017,0.02430234,43083.0,43079.0,0.71369744]
[1642244586218,0.02430234,43083.0,43079.0,0.019]
[1642244587962,0.02430234,43083.0,43078.0,0.60670708]
[1642244588563,0.02430234,43083.0,43080.0,0.32883419]
[1642244588763,0.02430234,43083.0,43080.0,0.28423419]
[1642244590364,0.02430234,43083.0,43079.0,0.60170708]
[1642244590814,0.01904963,43081.0,43079.0,0.006]
[1642244591315,0.04335197,43081.0,43076.0,0.00010314]
[1642244591615,0.04335197,43081.0,43076.0,0.32453485]
[1642244592014,0.04335197,43081.0,43077.0,8.595e-05]
[1642244592214,0.04335197,43081.0,43076.0,0.3196208]
[1642244593115,4.54335197,43081.0,43076.0,0.3196208]
[1642244593520,4.54335197,43081.0,43073.0,0.441]
[1642244593815,4.54335197,43081.0,43073.0,0.3962]
[1642244594016,4.55835197,43081.0,43073.0,1.78513673]
[1642244594217,4.55835197,43081.0,43075.0,1.287037]
[1642244594416,4.55835197,43081.0,43078.0,0.30738154]
[1642244595072,4.55835197,43081.0,43079.0,0.33878778]
[1642244595372,4.54335197,43081.0,43079.0,0.33878778]
[1642244595770,4.54335197,43081.0,43079.0,0.058027]
[1642244595970,4.52430234,43081.0,43076.0,0.017]
[1642244596174,0.01904963,43080.0,43076.0,0.017]
[1642244596572,0.02430234,43078.0,43076.0,0.017]
[1642244596774,0.02430234,43078.0,43077.0,1.22400082]
[1642244597573,0.02430234,43078.0,43077.0,0.058033]
[1642244597773,0.02430234,43078.0,43073.0,0.116064]
[1642244598073,0.02430234,43078.0,43077.0,0.026]
[1642244599021,0.02430234,43078.0,43076.0,1.27161805]
[1642244599320,0.02430234,43078.0,43076.0,0.59572061]
[1642244599721,0.02430234,43078.0,43076.0,2.36030072]
[1642244599919,0.02430234,43078.0,43076.0,2.30226472]
[1642244600120,0.02430234,43078.0,43076.0,2.32626472]
[1642244600320,0.02430234,43078.0,43076.0,1.73054411]
[1642244600921,0.02430234,43078.0,43076.0,0.024]
[1642244601325,0.00573234,43078.0,43073.0,0.11607518]
[1642244601522,0.01904963,43077.0,43073.0,0.05803718]
[1642244601921,0.00573234,43076.0,43073.0,0.05803718]
[1642244602461,0.00621197,43077.0,43072.0,0.3118]
[1642244602663,0.00300197,43077.0,43072.0,0.3118]
[1642244602862,0.00300197,43077.0,43073.0,6.877e-05]
[1642244603264,0.00234197,43077.0,43073.0,6.877e-05]
[1642244603461,0.28382063,43074.0,43073.0,6.877e-05]
[1642244603865,0.28382063,43074.0,43073.0,0.59576109]
[1642244604061,0.22224151,43077.0,43073.0,0.59576109]
[1642244604062,0.14224151,43077.0,43073.0,0.59576109]
[1642244604263,0.02234197,43077.0,43073.0,0.59576109]
[1642244604861,0.13878224,43077.0,43073.0,0.59576109]
[1642244605061,0.13917173,43077.0,43073.0,0.59576109]
[1642244605261,0.02234197,43077.0,43073.0,0.59576109]
[1642244605462,0.02234197,43077.0,43072.0,0.59576109]
[1642244605912,0.02234197,43077.0,43075.0,0.59576109]
[1642244606315,0.00234197,43077.0,43075.0,0.59576109]
[1642244606519,4.77694833,43081.0,43075.0,0.59576109]
[1642244606917,0.00234197,43078.0,43075.0,0.59576109]
[1642244607213,6.877e-05,43077.0,43075.0,0.59576109]
[1642244607414,6.877e-05,43077.0,43076.0,0.59576109]
[1642244608115,6.877e-05,43077.0,43076.0,0.60876109]
[1642244608417,6.877e-05,43077.0,43076.0,1.313]
[1642244608617,4.529,43081.0,43077.0,2.45]
[1642244609018,4.529,43081.0,43077.0,2.4045]
[1642244609317,4.5,43081.0,43078.0,0.05802958]
[1642244609577,4.5,43081.0,43080.0,1.69316318]
[1642244609978,4.57006876,43081.0,43080.0,1.69316318]
[1642244610878,4.57006876,43081.0,43079.0,0.98515153]
[1642244611081,4.57006876,43081.0,43080.0,1.49503049]
[1642244611277,4.50006876,43081.0,43080.0,1.49503049]
[1642244611878,4.50006876,43081.0,43080.0,1.72235638]
[1642244612077,4.57806876,43081.0,43080.0,1.74035638]
[1642244613331,4.50006876,43081.0,43080.0,1.25]
[1642244613933,4.50006876,43081.0,43080.0,1.2052]
[1642244614136,4.57706876,43081.0,43080.0,1.2232]
[1642244614332,4.57706876,43081.0,43080.0,1.53799705]
[1642244615133,4.57706876,43081.0,43080.0,2.74899705]
[1642244615335,4.50006876,43081.0,43080.0,2.74899705]
[1642244615533,4.50006876,43081.0,43080.0,2.4342]
[1642244615734,4.50006876,43081.0,43080.0,0.69503049]
[1642244615934,4.50006876,43081.0,43080.0,0.72003049]
[1642244616537,4.50006876,43081.0,43080.0,0.025]
[1642244617271,4.50006876,43081.0,43079.0,0.69503049]
[1642244617672,4.50006876,43081.0,43080.0,0.59551045]
[1642244618875,4.50006876,43081.0,43079.0,0.61651045]
[1642244619176,4.50006876,43081.0,43079.0,0.57161045]
[1642244619976,4.60506876,43081.0,43079.0,0.59161045]
[1642244620176,0.11731202,43080.0,43079.0,0.59161045]
[1642244620378,4.60506876,43081.0,43079.0,0.02]
[1642244620577,4.86401772,43081.0,43079.0,0.02]
[1642244620828,0.11842527,43080.0,43079.0,0.02]
[1642244621229,0.11842527,43080.0,43076.0,0.69503049]
[1642244621427,0.11842527,43080.0,43075.0,0.69503049]
[1642244622130,0.00122612,43080.0,43075.0,0.75303049]
[1642244622429,4.51506876,43081.0,43077.0,2.32502534]
[1642244623233,4.50006876,43081.0,43077.0,2.32502534]
[1642244624132,4.51606876,43081.0,43077.0,2.61325902]
[1642244625173,4.51606876,43081.0,43077.0,2.32602534]
[1642244625473,0.11795855,43080.0,43077.0,0.046]
[1642244625874,0.11795855,43080.0,43074.0,0.69503049]
[1642244626074,0.11795855,43080.0,43074.0,0.013]
[1642244626273,0.28033137,43079.0,43074.0,0.013]
[1642244627277,0.28033137,43079.0,43072.0,0.69503049]
[1642244627475,0.68542623,43079.0,43072.0,0.69503049]
[1642244627675,0.68542623,43079.0,43074.0,0.59559128]
[1642244627874,0.11598617,43078.0,43074.0,0.59559128]
[1642244628074,0.11598617,43078.0,43075.0,1.90679743]
[1642244628320,0.70842623,43079.0,43075.0,1.90679743]
[1642244628722,0.11575494,43078.0,43075.0,1.90679743]
[1642244628923,0.70842623,43079.0,43074.0,0.59559128]
[1642244629222,0.11604821,43078.0,43074.0,0.55069128]
[1642244629426,0.40509486,43079.0,43074.0,0.55069128]
[1642244629625,0.40509486,43079.0,43072.0,0.69503049]
[1642244629928,0.40509486,43079.0,43073.0,0.058039]
[1642244630124,0.42909486,43079.0,43074.0,0.016]
[1642244630525,0.72853749,43079.0,43074.0,0.016]
[1642244630826,0.024,43079.0,43074.0,0.016]
[1642244631025,0.024,43079.0,43076.0,0.058035]
[1642244631227,6.876e-05,43081.0,43076.0,0.058035]
[1642244632066,6.876e-05,43081.0,43080.0,0.70629041]
[1642244632269,6.876e-05,43081.0,43080.0,0.96473836]
[1642244632471,6.876e-05,43081.0,43079.0,0.058032]
[1642244632669,6.876e-05,43081.0,43075.0,0.11605842]
[1642244633768,6.876e-05,43081.0,43076.0,0.058034]
[1642244633968,6.876e-05,43081.0,43075.0,0.70408768]
[1642244634170,6.876e-05,43081.0,43074.0,0.01]
[1642244635267,6.876e-05,43081.0,43072.0,1.2938628]
[1642244636122,6.876e-05,43081.0,43072.0,1.3098628]
[1642244637723,6.876e-05,43081.0,43074.0,0.59575425]
[1642244638520,6.876e-05,43081.0,43073.0,0.59575425]
[1642244639121,6.876e-05,43081.0,43073.0,0.55075425]
[1642244640168,6.876e-05,43081.0,43073.0,0.56575425]
[1642244640970,6.876e-05,43081.0,43073.0,0.71003049]
[1642244641373,6.876e-05,43081.0,43073.0,0.69503049]
[1642244641571,6.876e-05,43081.0,43072.0,0.59883231]
[1642244642169,6.876e-05,43081.0,43072.0,0.61883231]
[1642244642873,0.05811376,43081.0,43072.0,0.326]
[1642244643072,0.14048589,43080.0,43072.0,0.326]
[1642244643318,0.14048589,43080.0,43072.0,0.306]
[1642244644319,0.14048589,43080.0,43072.0,0.2612]
[1642244645922,0.058048,43079.0,43070.0,2.20894461]
[1642244646122,0.058048,43079.0,43071.0,0.006]
[1642244646323,0.058048,43079.0,43071.0,0.00610315]
[1642244647165,0.058048,43079.0,43071.0,0.30146688]
[1642244647369,0.00012034,43078.0,43071.0,0.30146688]
[1642244647764,0.00010315,43077.0,43071.0,0.30146688]
[1642244648170,8.596e-05,43076.0,43071.0,0.30146688]
[1642244648665,6.876e-05,43075.0,43071.0,0.43527976]
[1642244648866,6.876e-05,43075.0,43071.0,1.03084115]
[1642244649067,0.00017191,43081.0,43073.0,0.30669604]
[1642244649265,0.00017191,43081.0,43073.0,0.26189604]
[1642244649465,0.11493333,43084.0,43073.0,0.26189604]
[1642244649466,0.00015472,43080.0,43073.0,0.26189604]
[1642244649867,0.00013753,43079.0,43073.0,0.26189604]
[1642244650066,0.00013753,43079.0,43073.0,0.85745743]
[1642244650267,0.59220384,43085.0,43078.0,0.99838837]